{"text_format":"1","workbook":"xlsx","n_sheets":3,"sheets":["Összefoglaló","Berendezéslista","Kimutatásadatok"],"not_rendered":{"charts":0,"images":0,"macros":1,"external_links":0,"defined_names":13,"comments":0,"pivot_tables":1},"unopened":[],"bounds":{"document_bytes":16777216,"sheet_cells":100000,"rows_first":2000,"rows_last":500,"rows_between":2000,"halvings":0,"cell_chars":16384,"cell_head_chars":4096},"cells_cut":0,"cells_raw":0,"read":"whole","date_system":"1900"}

{"sheet":"Összefoglaló","index":0,"n_rows":20,"n_cols":6,"rows_kept":20,"cut":false,"hidden":false,"merged":[]}
[null,"Összefoglaló"]
[]
[]
[null,null,null,null,null,"Teljes szám"]
[null,null,null,null,null,{"$f":"GETPIVOTDATA(\"Darab\",Kimutatásadatok!$B$11)","v":3}]
[]
[null,null,null,null,null,"Havi költség összesen"]
[null,null,null,null,null,{"$f":"GETPIVOTDATA(\"Havi költség összesen\",Kimutatásadatok!$B$11)","v":1765.5943035068672}]
[]
[null,null,null,null,null,"Kezelési költségek"]
[null,null,null,null,null,{"$f":"GETPIVOTDATA(\"Kezelési költségek\",Kimutatásadatok!$B$11)","v":605}]
[]
[null,null,null,null,null,"Havi értékcsökkenés"]
[null,null,null,null,null,{"$f":"GETPIVOTDATA(\"Havi értékcsökkenés\",Kimutatásadatok!$B$11)","v":659.72222222222217}]
[]
[null,null,null,null,null,"Törlesztőrészlet összege"]
[null,null,null,null,null,{"$f":"GETPIVOTDATA(\"Törlesztőrészlet összege\",Kimutatásadatok!$B$11)","v":1160.5943035068672}]
[]
[null,null,null,null,null,"Aktuális érték"]
[null,null,null,null,null,{"$f":"GETPIVOTDATA(\"Aktuális érték \",Kimutatásadatok!$B$11)","v":36621.689497716899}]

{"sheet":"Berendezéslista","index":1,"n_rows":9,"n_cols":20,"rows_kept":9,"cut":false,"hidden":false,"merged":[]}
[null,"Berendezéslista"]
[]
[null,null,null,"Kiemelés, ha a havi törlesztőrészletek kisebbek, mint a: ",20]
[]
[null,"Eszköz vagy\ngyártási szám","Tétel leírása\n(márka és típus)","Hely","Feltétel","Gyártó","Szolgáltatásból\nhátralévő évek száma ","Kezdő érték","Önrész","Vásárlás vagy\nlízingelés dátuma","Hitel futamideje\n(év)","Hitel kamata","Havi\nkezelési költségek","Szerződés végén várható érték","Hátralévő\nhavi törlesztőrészletek","Havi törlesztőrészlet","Havi költség\nösszesen","Éves értékcsökkenés\n(egyenes vonal)","Havi értékcsökkenés\n(egyenes vonal)","Aktuális érték"]
[null,123,"1. márkatípus","Fő ág","Jó","Helyi",5,30000,5000,"2011-01-15",4,0.1,200,20000,{"$f":"IFERROR(SUMPRODUCT(--(DAY(ROW(OFFSET($A$1,,,DATE(YEAR(BERENDEZÉSI_TÁRGY[[#This Row],[Vásárlás vagy\nlízingelés dátuma]])+BERENDEZÉSI_TÁRGY[[#This Row],[Hitel futamideje\n(év)]],MONTH(BERENDEZÉSI_TÁRGY[[#This Row],[Vásárlás vagy\nlízingelés dátuma]])-1,DAY(BERENDEZÉSI_TÁRGY[[#This Row],[Szolgáltatásból\nhátralévő évek száma ]]))-TODAY()))+DATE(YEAR(BERENDEZÉSI_TÁRGY[[#This Row],[Szolgáltatásból\nhátralévő évek száma ]])+BERENDEZÉSI_TÁRGY[[#This Row],[Hitel futamideje\n(év)]],MONTH(BERENDEZÉSI_TÁRGY[[#This Row],[Vásárlás vagy\nlízingelés dátuma]]),DAY(BERENDEZÉSI_TÁRGY[[#This Row],[Vásárlás vagy\nlízingelés dátuma]]))-1)=DAY(BERENDEZÉSI_TÁRGY[[#This Row],[Vásárlás vagy\nlízingelés dátuma]]))),0)","v":24},{"$f":"IFERROR(-(BERENDEZÉSI_TÁRGY[Kezdő érték]>0)*(BERENDEZÉSI_TÁRGY[Kezdő érték]<>BERENDEZÉSI_TÁRGY[Önrész])*PMT(BERENDEZÉSI_TÁRGY[Hitel kamata]/ÉvHónapjai,BERENDEZÉSI_TÁRGY[Hitel futamideje\n(év)]*ÉvHónapjai,BERENDEZÉSI_TÁRGY[Kezdő érték]-BERENDEZÉSI_TÁRGY[Önrész]),0)","v":634.06458586867973},{"$f":"BERENDEZÉSI_TÁRGY[[#This Row],[Havi törlesztőrészlet]]+BERENDEZÉSI_TÁRGY[[#This Row],[Havi\nkezelési költségek]]","v":834.06458586867973},{"$f":"IFERROR((BERENDEZÉSI_TÁRGY[Kezdő érték]>0)*SLN(BERENDEZÉSI_TÁRGY[Kezdő érték],BERENDEZÉSI_TÁRGY[Szerződés végén várható érték],BERENDEZÉSI_TÁRGY[Hitel futamideje\n(év)]),0)","v":2500},{"$f":"IFERROR(BERENDEZÉSI_TÁRGY[Éves értékcsökkenés\n(egyenes vonal)]/ÉvHónapjai,0)","v":208.33333333333334},{"$f":"IFERROR(BERENDEZÉSI_TÁRGY[Kezdő érték]-(BERENDEZÉSI_TÁRGY[Éves értékcsökkenés\n(egyenes vonal)]*((TODAY()-BERENDEZÉSI_TÁRGY[Vásárlás vagy\nlízingelés dátuma])/ÉvNapjai)),0)","v":25075.342465753423}]
[null,234,"2. márkatípus","Fő ág","Jó","Helyi",4,12500,1500,"2011-03-10",3,7.7499999999999999E-2,120,3000,{"$f":"IFERROR(SUMPRODUCT(--(DAY(ROW(OFFSET($A$1,,,DATE(YEAR(BERENDEZÉSI_TÁRGY[[#This Row],[Vásárlás vagy\nlízingelés dátuma]])+BERENDEZÉSI_TÁRGY[[#This Row],[Hitel futamideje\n(év)]],MONTH(BERENDEZÉSI_TÁRGY[[#This Row],[Vásárlás vagy\nlízingelés dátuma]])-1,DAY(BERENDEZÉSI_TÁRGY[[#This Row],[Szolgáltatásból\nhátralévő évek száma ]]))-TODAY()))+DATE(YEAR(BERENDEZÉSI_TÁRGY[[#This Row],[Szolgáltatásból\nhátralévő évek száma ]])+BERENDEZÉSI_TÁRGY[[#This Row],[Hitel futamideje\n(év)]],MONTH(BERENDEZÉSI_TÁRGY[[#This Row],[Vásárlás vagy\nlízingelés dátuma]]),DAY(BERENDEZÉSI_TÁRGY[[#This Row],[Vásárlás vagy\nlízingelés dátuma]]))-1)=DAY(BERENDEZÉSI_TÁRGY[[#This Row],[Vásárlás vagy\nlízingelés dátuma]]))),0)","v":13},{"$f":"IFERROR(-(BERENDEZÉSI_TÁRGY[Kezdő érték]>0)*(BERENDEZÉSI_TÁRGY[Kezdő érték]<>BERENDEZÉSI_TÁRGY[Önrész])*PMT(BERENDEZÉSI_TÁRGY[Hitel kamata]/ÉvHónapjai,BERENDEZÉSI_TÁRGY[Hitel futamideje\n(év)]*ÉvHónapjai,BERENDEZÉSI_TÁRGY[Kezdő érték]-BERENDEZÉSI_TÁRGY[Önrész]),0)","v":343.43280007691891},{"$f":"BERENDEZÉSI_TÁRGY[[#This Row],[Havi törlesztőrészlet]]+BERENDEZÉSI_TÁRGY[[#This Row],[Havi\nkezelési költségek]]","v":463.43280007691891},{"$f":"IFERROR((BERENDEZÉSI_TÁRGY[Kezdő érték]>0)*SLN(BERENDEZÉSI_TÁRGY[Kezdő érték],BERENDEZÉSI_TÁRGY[Szerződés végén várható érték],BERENDEZÉSI_TÁRGY[Hitel futamideje\n(év)]),0)","v":3166.6666666666665},{"$f":"IFERROR(BERENDEZÉSI_TÁRGY[Éves értékcsökkenés\n(egyenes vonal)]/ÉvHónapjai,0)","v":263.88888888888886},{"$f":"IFERROR(BERENDEZÉSI_TÁRGY[Kezdő érték]-(BERENDEZÉSI_TÁRGY[Éves értékcsökkenés\n(egyenes vonal)]*((TODAY()-BERENDEZÉSI_TÁRGY[Vásárlás vagy\nlízingelés dátuma])/ÉvNapjai)),0)","v":6730.5936073059365}]
[null,345,"2. márkatípus","1. ág","Kielégítő","Egyéb",1,10000,2500,"2010-09-15",4,0.08,285,1000,{"$f":"IFERROR(SUMPRODUCT(--(DAY(ROW(OFFSET($A$1,,,DATE(YEAR(BERENDEZÉSI_TÁRGY[[#This Row],[Vásárlás vagy\nlízingelés dátuma]])+BERENDEZÉSI_TÁRGY[[#This Row],[Hitel futamideje\n(év)]],MONTH(BERENDEZÉSI_TÁRGY[[#This Row],[Vásárlás vagy\nlízingelés dátuma]])-1,DAY(BERENDEZÉSI_TÁRGY[[#This Row],[Szolgáltatásból\nhátralévő évek száma ]]))-TODAY()))+DATE(YEAR(BERENDEZÉSI_TÁRGY[[#This Row],[Szolgáltatásból\nhátralévő évek száma ]])+BERENDEZÉSI_TÁRGY[[#This Row],[Hitel futamideje\n(év)]],MONTH(BERENDEZÉSI_TÁRGY[[#This Row],[Vásárlás vagy\nlízingelés dátuma]]),DAY(BERENDEZÉSI_TÁRGY[[#This Row],[Vásárlás vagy\nlízingelés dátuma]]))-1)=DAY(BERENDEZÉSI_TÁRGY[[#This Row],[Vásárlás vagy\nlízingelés dátuma]]))),0)","v":19},{"$f":"IFERROR(-(BERENDEZÉSI_TÁRGY[Kezdő érték]>0)*(BERENDEZÉSI_TÁRGY[Kezdő érték]<>BERENDEZÉSI_TÁRGY[Önrész])*PMT(BERENDEZÉSI_TÁRGY[Hitel kamata]/ÉvHónapjai,BERENDEZÉSI_TÁRGY[Hitel futamideje\n(év)]*ÉvHónapjai,BERENDEZÉSI_TÁRGY[Kezdő érték]-BERENDEZÉSI_TÁRGY[Önrész]),0)","v":183.09691756126861},{"$f":"BERENDEZÉSI_TÁRGY[[#This Row],[Havi törlesztőrészlet]]+BERENDEZÉSI_TÁRGY[[#This Row],[Havi\nkezelési költségek]]","v":468.09691756126858},{"$f":"IFERROR((BERENDEZÉSI_TÁRGY[Kezdő érték]>0)*SLN(BERENDEZÉSI_TÁRGY[Kezdő érték],BERENDEZÉSI_TÁRGY[Szerződés végén várható érték],BERENDEZÉSI_TÁRGY[Hitel futamideje\n(év)]),0)","v":2250},{"$f":"IFERROR(BERENDEZÉSI_TÁRGY[Éves értékcsökkenés\n(egyenes vonal)]/ÉvHónapjai,0)","v":187.5},{"$f":"IFERROR(BERENDEZÉSI_TÁRGY[Kezdő érték]-(BERENDEZÉSI_TÁRGY[Éves értékcsökkenés\n(egyenes vonal)]*((TODAY()-BERENDEZÉSI_TÁRGY[Vásárlás vagy\nlízingelés dátuma])/ÉvNapjai)),0)","v":4815.7534246575342}]
[null,"Összeg",null,null,null,null,{"$f":"SUBTOTAL(101,BERENDEZÉSI_TÁRGY[Szolgáltatásból\nhátralévő évek száma ])","v":3.3333333333333335},{"$f":"SUBTOTAL(109,BERENDEZÉSI_TÁRGY[Kezdő érték])","v":52500},{"$f":"SUBTOTAL(109,BERENDEZÉSI_TÁRGY[Önrész])","v":9000},null,{"$f":"SUBTOTAL(101,BERENDEZÉSI_TÁRGY[Hitel futamideje\n(év)])","v":3.6666666666666665},{"$f":"SUBTOTAL(101,BERENDEZÉSI_TÁRGY[Hitel kamata])","v":8.5833333333333331E-2},{"$f":"SUBTOTAL(109,BERENDEZÉSI_TÁRGY[Havi\nkezelési költségek])","v":605},{"$f":"SUBTOTAL(109,BERENDEZÉSI_TÁRGY[Szerződés végén várható érték])","v":24000},{"$f":"SUBTOTAL(101,BERENDEZÉSI_TÁRGY[Hátralévő\nhavi törlesztőrészletek])","v":18.666666666666668},{"$f":"SUBTOTAL(109,BERENDEZÉSI_TÁRGY[Havi törlesztőrészlet])","v":1160.5943035068672},{"$f":"SUBTOTAL(109,BERENDEZÉSI_TÁRGY[Havi költség\nösszesen])","v":1765.5943035068672},{"$f":"SUBTOTAL(101,BERENDEZÉSI_TÁRGY[Éves értékcsökkenés\n(egyenes vonal)])","v":2638.8888888888887},{"$f":"SUBTOTAL(101,BERENDEZÉSI_TÁRGY[Havi értékcsökkenés\n(egyenes vonal)])","v":219.90740740740739},{"$f":"SUBTOTAL(109,BERENDEZÉSI_TÁRGY[Aktuális érték])","v":36621.689497716899}]

{"sheet":"Kimutatásadatok","index":2,"n_rows":15,"n_cols":8,"rows_kept":15,"cut":false,"hidden":true,"merged":[]}
[null,"Kimutatásadatok"]
[null,"Hagyja rejtve ezt a munkalapot. A kimutatás szerkezetének módosítása ezen a lapon az összefoglaló szeletelőiben bekövetkező hibákkal járhat."]
[]
[]
[null,"Tétel leírása\n(márka és típus)","(mind)"]
[null,"Hely","(mind)"]
[null,"Feltétel","(mind)"]
[null,"Gyártó","(mind)"]
[null,"Szolgáltatásból\nhátralévő évek száma ","(mind)"]
[]
[null,"Sorcímkék","Darab","Kezelési költségek","Törlesztőrészlet összege","Havi költség összesen","Havi értékcsökkenés","Aktuális érték "]
[null,123,1,200,634.06458586867973,834.06458586867973,208.33333333333334,25075.342465753423]
[null,234,1,120,343.43280007691891,463.43280007691891,263.88888888888886,6730.5936073059365]
[null,345,1,285,183.09691756126861,468.09691756126858,187.5,4815.7534246575342]
[null,"Végösszeg",3,605,1160.5943035068672,1765.5943035068672,659.72222222222217,36621.689497716899]